[Event "*** Titled Tuesday Blitz"]
[Site "Chess.com"]
[Date "2020.04.14"]
[Round "2"]
[White "AvitalBor"]
[Black "GamayevOleg"]
[Result "1-0"]
[WhiteElo "2740"]
[BlackElo "2522"]
[TimeControl "180+1"]
[EndTime "10:14:56 PDT"]
[Termination "AvitalBor won by checkmate"]

1. e4 {[%clk 0:03:00.9]} 1... d6 {[%clk 0:03:00.3]} 2. d4 {[%clk 0:03:00.1]}
2... Nf6 {[%clk 0:03:00.7]} 3. Bd3 {[%clk 0:03:00]} 3... e5 {[%clk 0:03:00.5]}
4. c3 {[%clk 0:02:58.2]} 4... c6 {[%clk 0:03:00.7]} 5. Nf3 {[%clk 0:02:57.7]}
5... Nbd7 {[%clk 0:03:00.7]} 6. O-O {[%clk 0:02:56.5]} 6... Be7 {[%clk
0:03:00.5]} 7. a4 {[%clk 0:02:53.7]} 7... a5 {[%clk 0:02:59.9]} 8. Re1 {[%clk
0:02:53.8]} 8... O-O {[%clk 0:02:59.8]} 9. Na3 {[%clk 0:02:53.8]} 9... Qc7
{[%clk 0:02:59.8]} 10. Qc2 {[%clk 0:02:47.7]} 10... Re8 {[%clk 0:02:59.8]} 11.
h3 {[%clk 0:02:44.2]} 11... h6 {[%clk 0:02:59.9]} 12. Be3 {[%clk 0:02:35.3]}
12... Nh7 {[%clk 0:02:59.2]} 13. Rad1 {[%clk 0:02:28.9]} 13... Bf6 {[%clk
0:02:59.2]} 14. Nc4 {[%clk 0:02:22.6]} 14... Ng5 {[%clk 0:02:55.7]} 15. Nxg5
{[%clk 0:02:18.6]} 15... Bxg5 {[%clk 0:02:56.6]} 16. dxe5 {[%clk 0:01:47.2]}
16... dxe5 {[%clk 0:02:49.8]} 17. Bxg5 {[%clk 0:01:37.9]} 17... hxg5 {[%clk
0:02:50.7]} 18. Qd2 {[%clk 0:01:32.3]} 18... f6 {[%clk 0:02:43.9]} 19. Nd6
{[%clk 0:01:30]} 19... Re7 {[%clk 0:02:30.3]} 20. Bc4+ {[%clk 0:01:28.8]} 20...
Kh7 {[%clk 0:02:28.6]} 21. h4 {[%clk 0:01:01.6]} 21... gxh4 {[%clk 0:02:21.2]}
22. Qe2 {[%clk 0:00:46.5]} 22... g6 {[%clk 0:02:20.6]} 23. Qg4 {[%clk
0:00:46.5]} 23... Nf8 {[%clk 0:02:16.1]} 24. Qxh4+ {[%clk 0:00:45]} 24... Kg7
{[%clk 0:02:15.8]} 25. Re3 {[%clk 0:00:41.4]} 25... Be6 {[%clk 0:02:13.5]} 26.
Bxe6 {[%clk 0:00:37.2]} 26... Rxe6 {[%clk 0:02:14.4]} 27. Nf5+ {[%clk
0:00:32.3]} 27... gxf5 {[%clk 0:02:09.3]} 28. Rg3+ {[%clk 0:00:31.9]} 28... Kf7
{[%clk 0:02:09.2]} 29. Qh5+ {[%clk 0:00:31.7]} 29... Ke7 {[%clk 0:02:05.9]} 30.
Rg7# {[%clk 0:00:30.3]} 1-0

[Event "*** Titled Tuesday Blitz"]
[Site "Chess.com"]
[Date "2020.04.14"]
[Round "2"]
[White "Zaven_ChessMood"]
[Black "SavelijTartakover"]
[Result "1-0"]
[WhiteElo "2898"]
[BlackElo "2594"]
[TimeControl "180+1"]
[EndTime "10:15:00 PDT"]
[Termination "Zaven_ChessMood won by resignation"]

1. e4 {[%clk 0:03:00.9]} 1... c5 {[%clk 0:02:11.1]} 2. Nc3 {[%clk 0:02:59.6]}
2... e6 {[%clk 0:02:08]} 3. Nf3 {[%clk 0:02:59.1]} 3... Nc6 {[%clk 0:02:05.8]}
4. Bb5 {[%clk 0:02:59.2]} 4... Nge7 {[%clk 0:02:04.1]} 5. O-O {[%clk 0:02:59]}
5... a6 {[%clk 0:02:03.5]} 6. Bxc6 {[%clk 0:02:58.9]} 6... Nxc6 {[%clk
0:02:03.4]} 7. d4 {[%clk 0:02:59.8]} 7... cxd4 {[%clk 0:02:03.4]} 8. Nxd4 {[%clk
0:02:59]} 8... Be7 {[%clk 0:02:03.4]} 9. a4 {[%clk 0:02:55.7]} 9... d6 {[%clk
0:02:01.9]} 10. Be3 {[%clk 0:02:55.1]} 10... Bd7 {[%clk 0:01:58.6]} 11. Qe2
{[%clk 0:02:50]} 11... O-O {[%clk 0:01:57.6]} 12. Rad1 {[%clk 0:02:49.1]} 12...
Qc7 {[%clk 0:01:56.5]} 13. Nb3 {[%clk 0:02:43.7]} 13... Na5 {[%clk 0:01:52.7]}
14. Rd3 {[%clk 0:02:39]} 14... Nc4 {[%clk 0:01:46.3]} 15. Bc1 {[%clk 0:02:38.7]}
15... b5 {[%clk 0:01:43.3]} 16. axb5 {[%clk 0:02:37.6]} 16... axb5 {[%clk
0:01:43]} 17. Qh5 {[%clk 0:02:32.5]} 17... f5 {[%clk 0:00:48.8]} 18. Rh3 {[%clk
0:02:29.6]} 18... h6 {[%clk 0:00:47.8]} 19. Bxh6 {[%clk 0:02:23.7]} 19... Bf6
{[%clk 0:00:43.9]} 20. Bg5 {[%clk 0:02:16.9]} 20... Bxg5 {[%clk 0:00:38.7]} 21.
Qxg5 {[%clk 0:02:16]} 21... Nxb2 {[%clk 0:00:37.4]} 22. Qh5 {[%clk 0:02:08.2]}
22... Bc6 {[%clk 0:00:20]} 23. Qh7+ {[%clk 0:02:05.3]} 23... Kf7 {[%clk
0:00:19.9]} 24. exf5 {[%clk 0:02:05]} 24... Rg8 {[%clk 0:00:14.5]} 25. fxe6+
{[%clk 0:02:04.1]} 1-0

[Event "*** Titled Tuesday Blitz"]
[Site "Chess.com"]
[Date "2020.04.14"]
[Round "2"]
[White "Pultis"]
[Black "Danfii"]
[Result "1-0"]
[WhiteElo "2698"]
[BlackElo "2332"]
[TimeControl "180+1"]
[EndTime "10:15:02 PDT"]
[Termination "Pultis won by resignation"]

1. c4 {[%clk 0:03:00.9]} 1... e5 {[%clk 0:02:59.4]} 2. Nc3 {[%clk 0:02:56.4]}
2... Nf6 {[%clk 0:02:59.3]} 3. g3 {[%clk 0:02:37.8]} 3... d5 {[%clk 0:02:59.2]}
4. cxd5 {[%clk 0:02:37.2]} 4... Nxd5 {[%clk 0:03:00.1]} 5. Bg2 {[%clk
0:02:37.1]} 5... Nb6 {[%clk 0:03:00.4]} 6. Nf3 {[%clk 0:02:19.7]} 6... Nc6
{[%clk 0:03:00.1]} 7. O-O {[%clk 0:02:07.5]} 7... Be7 {[%clk 0:03:00.1]} 8. e3
{[%clk 0:02:07.5]} 8... O-O {[%clk 0:02:59.8]} 9. d4 {[%clk 0:02:08]} 9... exd4
{[%clk 0:02:55]} 10. Nxd4 {[%clk 0:02:08.9]} 10... Nxd4 {[%clk 0:02:55]} 11.
exd4 {[%clk 0:02:09.8]} 11... c6 {[%clk 0:02:55.6]} 12. Bf4 {[%clk 0:01:39.8]}
12... Be6 {[%clk 0:02:54.5]} 13. Re1 {[%clk 0:01:38.8]} 13... Bf6 {[%clk
0:02:54.7]} 14. Ne4 {[%clk 0:01:37.2]} 14... Bxd4 {[%clk 0:02:42.7]} 15. Bd6
{[%clk 0:01:36.3]} 15... Bxb2 {[%clk 0:02:35]} 16. Rb1 {[%clk 0:01:36.2]} 16...
Bf6 {[%clk 0:02:34.4]} 17. Bxf8 {[%clk 0:01:32.7]} 17... Kxf8 {[%clk 0:02:33]}
18. Nxf6 {[%clk 0:01:31.4]} 18... Qxf6 {[%clk 0:02:32.9]} 19. a4 {[%clk
0:01:27.7]} 19... Qe7 {[%clk 0:02:15]} 20. a5 {[%clk 0:01:26.3]} 20... Nd5
{[%clk 0:02:10.9]} 21. Qb3 {[%clk 0:01:06.4]} 21... Rb8 {[%clk 0:01:54.6]} 22.
a6 {[%clk 0:01:02]} 22... b6 {[%clk 0:01:51.4]} 23. Qc2 {[%clk 0:01:01.3]} 23...
Qd7 {[%clk 0:01:44.4]} 24. Qxh7 {[%clk 0:00:56.6]} 24... Rc8 {[%clk 0:01:32.3]}
25. Qh8+ {[%clk 0:00:47.1]} 25... Ke7 {[%clk 0:01:32.5]} 26. Qxg7 {[%clk
0:00:48]} 1-0

[Event "*** Titled Tuesday Blitz"]
[Site "Chess.com"]
[Date "2020.04.14"]
[Round "2"]
[White "GMSrinath"]
[Black "RATNAKARAN"]
[Result "1-0"]
[WhiteElo "2796"]
[BlackElo "2553"]
[TimeControl "180+1"]
[EndTime "10:15:04 PDT"]
[Termination "GMSrinath won by resignation"]

1. Nf3 {[%clk 0:03:00.9]} 1... d5 {[%clk 0:02:57.5]} 2. c4 {[%clk 0:02:59.8]}
2... c6 {[%clk 0:02:57.5]} 3. e3 {[%clk 0:02:59.4]} 3... Nf6 {[%clk 0:02:55.5]}
4. b3 {[%clk 0:02:59.7]} 4... Nbd7 {[%clk 0:02:53.6]} 5. Bb2 {[%clk 0:02:59.8]}
5... Qc7 {[%clk 0:02:53.9]} 6. Nc3 {[%clk 0:02:59.3]} 6... e5 {[%clk 0:02:52.4]}
7. cxd5 {[%clk 0:02:55.5]} 7... cxd5 {[%clk 0:02:52.4]} 8. Nb5 {[%clk
0:02:55.7]} 8... Qb8 {[%clk 0:02:47.3]} 9. Rc1 {[%clk 0:02:55.1]} 9... Bc5
{[%clk 0:02:41.1]} 10. Rxc5 {[%clk 0:02:49.7]} 10... Nxc5 {[%clk 0:02:38.5]} 11.
Bxe5 {[%clk 0:02:49.5]} 11... a6 {[%clk 0:02:38.8]} 12. Bxb8 {[%clk 0:02:34.7]}
12... axb5 {[%clk 0:02:38.5]} 13. Qc2 {[%clk 0:02:19.2]} 13... O-O {[%clk
0:02:12.4]} 14. Bd6 {[%clk 0:02:14.6]} 14... Nce4 {[%clk 0:02:04.3]} 15. Bxf8
{[%clk 0:02:14.5]} 15... Kxf8 {[%clk 0:02:05.2]} 16. Bxb5 {[%clk 0:02:12.6]}
16... Bf5 {[%clk 0:02:00.9]} 17. Qb2 {[%clk 0:01:55.7]} 17... Nc5 {[%clk
0:01:47.9]} 18. O-O {[%clk 0:01:45.1]} 18... b6 {[%clk 0:01:47.5]} 19. a4 {[%clk
0:01:44.6]} 19... h6 {[%clk 0:01:44.9]} 20. Rc1 {[%clk 0:01:44]} 20... Kg8
{[%clk 0:01:44.3]} 21. Ne5 {[%clk 0:01:41.9]} 21... Nfe4 {[%clk 0:01:40.1]} 22.
f3 {[%clk 0:01:39.7]} 22... Nd6 {[%clk 0:01:39.6]} 23. d4 {[%clk 0:01:36.5]}
23... Ncb7 {[%clk 0:01:32.9]} 24. Bc6 {[%clk 0:01:36.1]} 24... Be6 {[%clk
0:01:33.1]} 25. Qa3 {[%clk 0:01:29.1]} 25... Rd8 {[%clk 0:01:17.8]} 26. Bxb7
{[%clk 0:01:28.3]} 26... Nxb7 {[%clk 0:01:17.9]} 27. Rc7 {[%clk 0:01:28.4]}
27... Na5 {[%clk 0:01:15.9]} 28. Qe7 {[%clk 0:01:26.5]} 28... Rf8 {[%clk
0:01:13.6]} 29. Nd7 {[%clk 0:01:19.8]} 29... Bxd7 {[%clk 0:01:09.6]} 30. Qxd7
{[%clk 0:01:18.5]} 30... Nxb3 {[%clk 0:01:10.5]} 31. Qxd5 {[%clk 0:01:18.3]} 1-0

[Event "*** Titled Tuesday Blitz"]
[Site "Chess.com"]
[Date "2020.04.14"]
[Round "2"]
[White "W_Amadeus"]
[Black "korbul"]
[Result "1-0"]
[WhiteElo "2723"]
[BlackElo "2515"]
[TimeControl "180+1"]
[EndTime "10:15:05 PDT"]
[Termination "W_Amadeus won by resignation"]

1. e4 {[%clk 0:03:00.9]} 1... c5 {[%clk 0:02:59.4]} 2. Nf3 {[%clk 0:03:00.5]}
2... e6 {[%clk 0:02:59.6]} 3. d4 {[%clk 0:02:58]} 3... cxd4 {[%clk 0:02:59.6]}
4. Nxd4 {[%clk 0:02:58.9]} 4... a6 {[%clk 0:02:59.9]} 5. c4 {[%clk 0:02:57.9]}
5... Nf6 {[%clk 0:02:58.8]} 6. Nc3 {[%clk 0:02:58.1]} 6... Bb4 {[%clk
0:02:58.4]} 7. Qd3 {[%clk 0:02:58.3]} 7... Qc7 {[%clk 0:02:57.9]} 8. a3 {[%clk
0:02:58]} 8... Bxc3+ {[%clk 0:02:56.4]} 9. Qxc3 {[%clk 0:02:58.9]} 9... Nxe4
{[%clk 0:02:55.2]} 10. Nb5 {[%clk 0:02:58.5]} 10... axb5 {[%clk 0:02:50.9]} 11.
Qxg7 {[%clk 0:02:56.4]} 11... Rf8 {[%clk 0:02:49.9]} 12. Bh6 {[%clk 0:02:44]}
12... Qc5 {[%clk 0:02:45.3]} 13. f3 {[%clk 0:02:40.7]} 13... Nf2 {[%clk
0:02:11.9]} 14. b4 {[%clk 0:02:24.4]} 14... Qe7 {[%clk 0:01:47.6]} 15. Kxf2
{[%clk 0:02:18.9]} 15... bxc4 {[%clk 0:01:47]} 16. Bxc4 {[%clk 0:02:02.8]} 16...
d5 {[%clk 0:01:43.3]} 17. Bd3 {[%clk 0:02:02.6]} 17... Nd7 {[%clk 0:01:35.3]}
18. Bb5 {[%clk 0:02:02.9]} 18... b6 {[%clk 0:00:54.9]} 19. Rhc1 {[%clk
0:01:56.8]} 19... Ba6 {[%clk 0:00:54.7]} 20. Bxa6 {[%clk 0:01:47.2]} 20... Qh4+
{[%clk 0:00:46.4]} 21. Kg1 {[%clk 0:01:38.2]} 21... Rxa6 {[%clk 0:00:43.6]} 22.
Rc8+ {[%clk 0:01:37.4]} 22... Ke7 {[%clk 0:00:43.9]} 23. Bg5+ {[%clk 0:01:33.8]}
23... Qxg5 {[%clk 0:00:43.5]} 24. Qxg5+ {[%clk 0:01:33.4]} 24... f6 {[%clk
0:00:44.4]} 25. Qc1 {[%clk 0:01:29.3]} 1-0

[Event "*** Titled Tuesday Blitz"]
[Site "Chess.com"]
[Date "2020.04.14"]
[Round "2"]
[White "varacalli"]
[Black "tamarozi99"]
[Result "1-0"]
[WhiteElo "2374"]
[BlackElo "1960"]
[TimeControl "180+1"]
[EndTime "10:15:06 PDT"]
[Termination "varacalli won by resignation"]

1. e4 {[%clk 0:02:52.9]} 1... c5 {[%clk 0:02:59.5]} 2. Nf3 {[%clk 0:02:52.7]}
2... Nc6 {[%clk 0:02:59.6]} 3. d4 {[%clk 0:02:53]} 3... cxd4 {[%clk 0:03:00]} 4.
Nxd4 {[%clk 0:02:53.9]} 4... g6 {[%clk 0:02:59.4]} 5. Nc3 {[%clk 0:02:42.5]}
5... Bg7 {[%clk 0:02:59.4]} 6. Be3 {[%clk 0:02:36.2]} 6... Nf6 {[%clk
0:02:58.7]} 7. Bc4 {[%clk 0:02:35.8]} 7... O-O {[%clk 0:02:58.3]} 8. Bb3 {[%clk
0:02:35.6]} 8... d6 {[%clk 0:02:36.6]} 9. h3 {[%clk 0:02:34.9]} 9... Na5 {[%clk
0:02:30.2]} 10. O-O {[%clk 0:02:34.2]} 10... b6 {[%clk 0:02:28.1]} 11. Re1
{[%clk 0:02:34.1]} 11... Ba6 {[%clk 0:02:21.3]} 12. Bg5 {[%clk 0:02:30.2]} 12...
h6 {[%clk 0:02:15.3]} 13. Bh4 {[%clk 0:02:29.3]} 13... Rc8 {[%clk 0:02:06.2]}
14. Nd5 {[%clk 0:02:28]} 14... g5 {[%clk 0:02:00.5]} 15. Bg3 {[%clk 0:02:24.8]}
15... Nc4 {[%clk 0:01:37.7]} 16. Rb1 {[%clk 0:02:19.6]} 16... Nd7 {[%clk
0:01:10.3]} 17. Nf5 {[%clk 0:02:17.9]} 17... Re8 {[%clk 0:00:56.1]} 18. Nxg7
{[%clk 0:02:15.8]} 18... Kxg7 {[%clk 0:00:57]} 19. c3 {[%clk 0:02:12.9]} 19...
e6 {[%clk 0:00:39.5]} 20. Ne3 {[%clk 0:02:04.1]} 20... Nxe3 {[%clk 0:00:24.9]}
21. Rxe3 {[%clk 0:02:05]} 21... Ne5 {[%clk 0:00:25.3]} 22. Qd2 {[%clk
0:02:03.6]} 22... Re7 {[%clk 0:00:15.8]} 23. Rd1 {[%clk 0:02:02.2]} 23... Rd7
{[%clk 0:00:15.7]} 24. Bxe5+ {[%clk 0:02:01.9]} 1-0

[Event "*** Titled Tuesday Blitz"]
[Site "Chess.com"]
[Date "2020.04.14"]
[Round "2"]
[White "Ba_clbaf_osed_ingo_3v21"]
[Black "Olga_Zhuravleva"]
[Result "0-1"]
[WhiteElo "2573"]
[BlackElo "2231"]
[TimeControl "180+1"]
[EndTime "10:15:08 PDT"]
[Termination "Olga_Zhuravleva won by resignation"]

1. Nf3 {[%clk 0:03:00.9]} 1... Nf6 {[%clk 0:02:59]} 2. c4 {[%clk 0:03:01.8]}
2... e6 {[%clk 0:02:57.1]} 3. g3 {[%clk 0:03:01.7]} 3... b6 {[%clk 0:02:57.4]}
4. Bg2 {[%clk 0:03:02.6]} 4... Bb7 {[%clk 0:02:58]} 5. O-O {[%clk 0:03:03.5]}
5... Be7 {[%clk 0:02:58.2]} 6. d4 {[%clk 0:03:04]} 6... O-O {[%clk 0:02:58.4]}
7. d5 {[%clk 0:03:04.4]} 7... exd5 {[%clk 0:02:54.3]} 8. Nh4 {[%clk 0:03:04.7]}
8... c5 {[%clk 0:02:39.7]} 9. cxd5 {[%clk 0:03:00.5]} 9... d6 {[%clk 0:02:39.9]}
10. Nc3 {[%clk 0:02:59.9]} 10... Nbd7 {[%clk 0:02:36.1]} 11. e4 {[%clk
0:02:58.1]} 11... Re8 {[%clk 0:02:34.3]} 12. Nf5 {[%clk 0:02:56.4]} 12... Bf8
{[%clk 0:02:34.1]} 13. Bf4 {[%clk 0:02:52.4]} 13... Ne5 {[%clk 0:02:33.3]} 14.
Bg5 {[%clk 0:02:48.3]} 14... h6 {[%clk 0:02:30.5]} 15. Bd2 {[%clk 0:02:43.3]}
15... Kh7 {[%clk 0:02:23.4]} 16. Ne3 {[%clk 0:02:28]} 16... Ba6 {[%clk
0:02:16.7]} 17. Re1 {[%clk 0:02:08.5]} 17... Nd3 {[%clk 0:02:13.8]} 18. Qc2
{[%clk 0:02:08.4]} 18... Nxe1 {[%clk 0:02:12.8]} 19. Rxe1 {[%clk 0:02:09.3]}
19... g6 {[%clk 0:02:07.1]} 20. f4 {[%clk 0:02:00.8]} 20... Bg7 {[%clk
0:02:06.6]} 21. a4 {[%clk 0:01:59.9]} 21... Qd7 {[%clk 0:02:04.2]} 22. b3 {[%clk
0:01:59.7]} 22... Ng4 {[%clk 0:01:54]} 23. Bh3 {[%clk 0:01:37.7]} 23... Nxe3
{[%clk 0:01:51.9]} 24. Bxd7 {[%clk 0:01:05.3]} 24... Nxc2 {[%clk 0:01:51.5]} 25.
Rc1 {[%clk 0:01:05.2]} 25... Red8 {[%clk 0:01:41.3]} 26. Bc6 {[%clk 0:01:04.2]}
26... Bxc3 {[%clk 0:01:25.6]} 27. Bxc3 {[%clk 0:01:01.3]} 27... Nd4 {[%clk
0:01:25.3]} 28. Bxa8 {[%clk 0:01:00.7]} 28... Ne2+ {[%clk 0:01:23.5]} 0-1

[Event "*** Titled Tuesday Blitz"]
[Site "Chess.com"]
[Date "2020.04.14"]
[Round "2"]
[White "Tall-guy"]
[Black "garicradomir"]
[Result "0-1"]
[WhiteElo "2052"]
[BlackElo "2386"]
[TimeControl "180+1"]
[EndTime "10:15:14 PDT"]
[Termination "garicradomir won by resignation"]

1. e4 {[%clk 0:03:00]} 1... c5 {[%clk 0:02:59.6]} 2. Nf3 {[%clk 0:02:59.7]} 2...
Nc6 {[%clk 0:02:59.9]} 3. Bb5 {[%clk 0:02:57]} 3... g6 {[%clk 0:02:59.4]} 4.
Bxc6 {[%clk 0:02:54.9]} 4... bxc6 {[%clk 0:03:00.3]} 5. O-O {[%clk 0:02:54]}
5... Bg7 {[%clk 0:03:00.7]} 6. Re1 {[%clk 0:02:54.5]} 6... Qc7 {[%clk 0:03:01]}
7. c3 {[%clk 0:02:49.9]} 7... d6 {[%clk 0:03:00.7]} 8. d4 {[%clk 0:02:36.3]}
8... cxd4 {[%clk 0:02:59.8]} 9. cxd4 {[%clk 0:02:36.8]} 9... Bg4 {[%clk
0:03:00.2]} 10. Be3 {[%clk 0:02:33.2]} 10... Nf6 {[%clk 0:02:49.3]} 11. Nc3
{[%clk 0:02:32.6]} 11... O-O {[%clk 0:02:44.8]} 12. h3 {[%clk 0:02:32.8]} 12...
Bxf3 {[%clk 0:02:42.7]} 13. Qxf3 {[%clk 0:02:33.7]} 13... Rab8 {[%clk
0:02:42.1]} 14. Re2 {[%clk 0:02:32.4]} 14... Nd7 {[%clk 0:02:39.5]} 15. h4
{[%clk 0:02:30.9]} 15... c5 {[%clk 0:02:38]} 16. Rd1 {[%clk 0:02:27.6]} 16...
cxd4 {[%clk 0:02:34.1]} 17. Bxd4 {[%clk 0:02:28.5]} 17... Ne5 {[%clk 0:02:34.5]}
18. Bxe5 {[%clk 0:02:25.2]} 18... Bxe5 {[%clk 0:02:33.3]} 19. Nd5 {[%clk
0:02:23.8]} 19... Qb7 {[%clk 0:02:22.6]} 20. h5 {[%clk 0:02:22.2]} 20... Kg7
{[%clk 0:02:18.5]} 21. Qh3 {[%clk 0:02:11.4]} 21... e6 {[%clk 0:02:10.9]} 22.
h6+ {[%clk 0:02:11.1]} 22... Kg8 {[%clk 0:02:07.6]} 23. Ne3 {[%clk 0:02:08.5]}
23... Qa6 {[%clk 0:02:02.3]} 24. Rde1 {[%clk 0:02:01.6]} 24... Qxa2 {[%clk
0:01:59.6]} 25. Ng4 {[%clk 0:01:44.1]} 25... Rxb2 {[%clk 0:01:48.8]} 26. Rxb2
{[%clk 0:01:26.8]} 26... Qxb2 {[%clk 0:01:44.3]} 27. Qd3 {[%clk 0:01:07.4]}
27... Rc8 {[%clk 0:01:27.4]} 28. Re2 {[%clk 0:01:03.4]} 28... Rc1+ {[%clk
0:01:19.6]} 0-1

[Event "*** Titled Tuesday Blitz"]
[Site "Chess.com"]
[Date "2020.04.14"]
[Round "2"]
[White "jerry_77"]
[Black "Chess2019Player"]
[Result "1-0"]
[WhiteElo "2446"]
[BlackElo "2184"]
[TimeControl "180+1"]
[EndTime "10:15:18 PDT"]
[Termination "jerry_77 won on time"]

1. e4 {[%clk 0:03:00.9]} 1... e6 {[%clk 0:02:59.1]} 2. Nf3 {[%clk 0:02:59.3]}
2... d5 {[%clk 0:02:58.2]} 3. Nc3 {[%clk 0:03:00.2]} 3... Nf6 {[%clk 0:02:55.8]}
4. e5 {[%clk 0:03:00.1]} 4... Nfd7 {[%clk 0:02:55.8]} 5. d4 {[%clk 0:03:00.4]}
5... c5 {[%clk 0:02:56.2]} 6. Ne2 {[%clk 0:03:01.3]} 6... Nc6 {[%clk 0:02:55.6]}
7. c3 {[%clk 0:03:01.5]} 7... Be7 {[%clk 0:02:48.6]} 8. Nf4 {[%clk 0:03:00.2]}
8... Qb6 {[%clk 0:02:18.7]} 9. a3 {[%clk 0:02:58.3]} 9... cxd4 {[%clk
0:01:45.9]} 10. cxd4 {[%clk 0:02:55.2]} 10... h5 {[%clk 0:01:43.2]} 11. h4
{[%clk 0:02:52.3]} 11... g6 {[%clk 0:01:12.3]} 12. Be2 {[%clk 0:02:48.6]} 12...
Qd8 {[%clk 0:00:54.2]} 13. g3 {[%clk 0:02:43.3]} 13... b6 {[%clk 0:00:42.7]} 14.
Be3 {[%clk 0:02:35.5]} 14... Bb7 {[%clk 0:00:40.9]} 15. Rc1 {[%clk 0:02:35.3]}
15... Rc8 {[%clk 0:00:40.6]} 16. O-O {[%clk 0:02:34.9]} 16... Na5 {[%clk
0:00:25.4]} 17. Nd2 {[%clk 0:02:30.3]} 17... Bxh4 {[%clk 0:00:14.9]} 18. gxh4
{[%clk 0:02:29.4]} 18... Qxh4 {[%clk 0:00:15.8]} 19. Ng2 {[%clk 0:02:29.4]}
19... Qe7 {[%clk 0:00:13.7]} 20. Rxc8+ {[%clk 0:02:28.6]} 20... Bxc8 {[%clk
0:00:13.3]} 21. b4 {[%clk 0:02:28.7]} 21... Nc6 {[%clk 0:00:12.3]} 22. Bb5
{[%clk 0:02:28.3]} 22... Bb7 {[%clk 0:00:12.1]} 23. Qa4 {[%clk 0:02:28.3]} 23...
Ndb8 {[%clk 0:00:06.9]} 24. Rc1 {[%clk 0:02:27.4]} 24... Qd7 {[%clk 0:00:06.6]}
25. Be2 {[%clk 0:02:20.9]} 25... O-O {[%clk 0:00:04.4]} 26. Bh6 {[%clk
0:02:19.7]} 26... Rd8 {[%clk 0:00:03.6]} 27. Nf3 {[%clk 0:02:19.9]} 27... Nxe5
{[%clk 0:00:03.1]} 28. Qb3 {[%clk 0:02:16.1]} 28... Nc4 {[%clk 0:00:01.3]} 29.
Bxc4 {[%clk 0:02:12.8]} 29... dxc4 {[%clk 0:00:02.2]} 30. Qe3 {[%clk 0:02:12.8]}
30... b5 {[%clk 0:00:01.8]} 31. Qe5 {[%clk 0:02:12.1]} 1-0

[Event "*** Titled Tuesday Blitz"]
[Site "Chess.com"]
[Date "2020.04.14"]
[Round "2"]
[White "Shivagami"]
[Black "ChessFunMaker"]
[Result "0-1"]
[WhiteElo "2123"]
[BlackElo "2407"]
[TimeControl "180+1"]
[EndTime "10:15:18 PDT"]
[Termination "ChessFunMaker won by resignation"]

1. d4 {[%clk 0:03:00.1]} 1... Nf6 {[%clk 0:02:59.6]} 2. Bf4 {[%clk 0:02:58]}
2... g6 {[%clk 0:02:56.8]} 3. e3 {[%clk 0:02:58]} 3... d5 {[%clk 0:02:56.7]} 4.
Nf3 {[%clk 0:02:57.3]} 4... Bg7 {[%clk 0:02:57]} 5. Be2 {[%clk 0:02:57.1]} 5...
c5 {[%clk 0:02:55.4]} 6. c3 {[%clk 0:02:56.9]} 6... Nc6 {[%clk 0:02:55.4]} 7.
O-O {[%clk 0:02:55.4]} 7... Nd7 {[%clk 0:02:55.3]} 8. c4 {[%clk 0:02:37.2]} 8...
dxc4 {[%clk 0:02:45.2]} 9. Bxc4 {[%clk 0:02:33.7]} 9... cxd4 {[%clk 0:02:43.5]}
10. exd4 {[%clk 0:02:32.2]} 10... O-O {[%clk 0:02:35.5]} 11. Bb3 {[%clk
0:01:49.5]} 11... Nb6 {[%clk 0:02:33.4]} 12. d5 {[%clk 0:01:46.2]} 12... Bxb2
{[%clk 0:02:24.9]} 13. dxc6 {[%clk 0:01:45]} 13... Qxd1 {[%clk 0:02:17.8]} 14.
Rxd1 {[%clk 0:01:43.3]} 14... Bxa1 {[%clk 0:02:18.1]} 15. Ne5 {[%clk 0:01:33.6]}
15... Bxe5 {[%clk 0:02:09.8]} 16. Bxe5 {[%clk 0:01:31.6]} 16... bxc6 {[%clk
0:02:09.8]} 17. Nc3 {[%clk 0:01:20.2]} 17... Bf5 {[%clk 0:01:54.4]} 18. f3
{[%clk 0:01:08.8]} 18... Rfd8 {[%clk 0:01:52.4]} 19. Bd4 {[%clk 0:01:00.5]}
19... Rd7 {[%clk 0:01:23.4]} 20. g4 {[%clk 0:00:55]} 20... Be6 {[%clk
0:01:23.1]} 0-1

[Event "*** Titled Tuesday Blitz"]
[Site "Chess.com"]
[Date "2020.04.14"]
[Round "2"]
[White "Andro2"]
[Black "HElissalt"]
[Result "1-0"]
[WhiteElo "2421"]
[BlackElo "2136"]
[TimeControl "180+1"]
[EndTime "10:15:20 PDT"]
[Termination "Andro2 won by resignation"]

1. e4 {[%clk 0:03:00.9]} 1... c5 {[%clk 0:02:56.2]} 2. Nf3 {[%clk 0:02:59.2]}
2... e6 {[%clk 0:02:55]} 3. d4 {[%clk 0:02:58.6]} 3... cxd4 {[%clk 0:02:54.7]}
4. Nxd4 {[%clk 0:02:59.5]} 4... Nf6 {[%clk 0:02:50.5]} 5. Nc3 {[%clk 0:02:58.7]}
5... Bb4 {[%clk 0:02:49.8]} 6. Bd3 {[%clk 0:02:54.2]} 6... d5 {[%clk 0:02:38]}
7. e5 {[%clk 0:02:46.8]} 7... Ne4 {[%clk 0:02:30.2]} 8. Bxe4 {[%clk 0:02:20.8]}
8... dxe4 {[%clk 0:02:28.5]} 9. O-O {[%clk 0:02:17.9]} 9... Bxc3 {[%clk
0:02:26.7]} 10. bxc3 {[%clk 0:02:17.3]} 10... O-O {[%clk 0:02:25]} 11. Qg4
{[%clk 0:02:16]} 11... Kh8 {[%clk 0:02:11.7]} 12. Ba3 {[%clk 0:02:10.3]} 12...
Re8 {[%clk 0:01:52.5]} 13. Qxe4 {[%clk 0:02:06.9]} 13... Nd7 {[%clk 0:01:50.3]}
14. Rad1 {[%clk 0:02:05.1]} 14... Qa5 {[%clk 0:01:47.1]} 15. Bd6 {[%clk
0:02:02.2]} 15... Nc5 {[%clk 0:01:39.4]} 16. Qf4 {[%clk 0:01:53.5]} 16... Bd7
{[%clk 0:01:28.9]} 17. Qxf7 {[%clk 0:01:47.6]} 17... Bc6 {[%clk 0:01:02.2]} 18.
Rfe1 {[%clk 0:01:29.3]} 18... Ne4 {[%clk 0:00:38.8]} 19. Nxc6 {[%clk 0:01:13.5]}
19... Nxd6 {[%clk 0:00:37]} 20. Qxe8+ {[%clk 0:01:07.4]} 1-0